[Event "Titled Tuesday Blitz November 29 Early 2022"]
[White "Papp, Levente"]
[Black "Barash, Anton"]
[WhiteFideId "751243"]
[BlackFideId "30935229"]
[WhiteElo "2380"]
[BlackElo "2303"]
[Result "1-0"]
[Round "01"]
[TimeControl "180+1"]
[Date "2022.11.30"]
[WhiteClock "0:00:05"]
[BlackClock "0:00:11"]

1. Nf3 {[%clk 0:02:55]}  Nf6 {[%clk 0:02:58]} 2. g3 {[%clk 0:02:54]}  g6 {[%clk 0:02:59]} 3. b3 {[%clk 0:02:55]}  Bg7 {[%clk 0:02:59]} 4. Bb2 {[%clk 0:02:55]}  O-O {[%clk 0:03:00]} 5. Bg2 {[%clk 0:02:55]}  c5 {[%clk 0:02:59]} 6. c4 {[%clk 0:02:55]}  Nc6 {[%clk 0:02:59]} 7. O-O {[%clk 0:02:55]}  d6 {[%clk 0:02:59]} 8. d4 {[%clk 0:02:52]}  Bg4 {[%clk 0:02:47]} 9. d5 {[%clk 0:02:45]}  Nb8 {[%clk 0:02:47]} 10. Ne1 {[%clk 0:02:33]}  Qc8 {[%clk 0:02:44]} 11. Nc3 {[%clk 0:02:23]}  a6 {[%clk 0:02:41]} 12. a4 {[%clk 0:02:20]}  Bh3 {[%clk 0:02:39]} 13. Nd3 {[%clk 0:02:11]}  Qg4 {[%clk 0:02:37]} 14. e4 {[%clk 0:02:04]}  Bxg2 {[%clk 0:02:35]} 15. Qxg4 {[%clk 0:02:00]}  Nxg4 {[%clk 0:02:32]} 16. Kxg2 {[%clk 0:02:00]}  Nd7 {[%clk 0:02:31]} 17. Rfe1 {[%clk 0:01:36]}  Nde5 {[%clk 0:02:28]} 18. Nc1 {[%clk 0:01:30]}  Rfb8 {[%clk 0:02:15]} 19. f3 {[%clk 0:01:21]}  Nh6 {[%clk 0:02:11]} 20. f4 {[%clk 0:01:13]}  Nd7 {[%clk 0:02:11]} 21. Nd3 {[%clk 0:01:13]}  f5 {[%clk 0:02:09]} 22. exf5 {[%clk 0:00:46]}  Nxf5 {[%clk 0:02:08]} 23. g4 {[%clk 0:00:47]}  Nd4 {[%clk 0:01:58]} 24. Rxe7 {[%clk 0:00:46]}  Rd8 {[%clk 0:01:45]} 25. Ne2 {[%clk 0:00:33]}  Bf6 {[%clk 0:01:38]} 26. Re4 {[%clk 0:00:26]}  Nxb3 {[%clk 0:01:03]} 27. Rd1 {[%clk 0:00:26]}  Re8 {[%clk 0:00:56]} 28. Ng3 {[%clk 0:00:26]}  Na5 {[%clk 0:00:47]} 29. g5 {[%clk 0:00:21]}  Bg7 {[%clk 0:00:45]} 30. Rde1 {[%clk 0:00:20]}  Rxe4 {[%clk 0:00:42]} 31. Rxe4 {[%clk 0:00:16]}  Kf7 {[%clk 0:00:41]} 32. f5 {[%clk 0:00:15]}  Bxb2 {[%clk 0:00:32]} 33. Nxb2 {[%clk 0:00:15]}  Re8 {[%clk 0:00:29]} 34. f6 {[%clk 0:00:15]}  Nb6 {[%clk 0:00:26]} 35. Rh4 {[%clk 0:00:12]}  Kg8 {[%clk 0:00:23]} 36. Kf2 {[%clk 0:00:10]}  Re5 {[%clk 0:00:18]} 37. Ne4 {[%clk 0:00:07]}  Nc8 {[%clk 0:00:18]} 38. f7+ {[%clk 0:00:06]}  Kxf7 {[%clk 0:00:18]} 39. Rxh7+ {[%clk 0:00:07]}  Kg8 {[%clk 0:00:18]} 40. Nf6+ {[%clk 0:00:08]}  Kf8 {[%clk 0:00:15]} 41. Nd7+ {[%clk 0:00:07]}  Kg8 {[%clk 0:00:14]} 42. Nxe5 {[%clk 0:00:08]}  Kxh7 {[%clk 0:00:14]} 43. Ng4 {[%clk 0:00:07]}  Kg7 {[%clk 0:00:12]} 44. Ke3 {[%clk 0:00:06]}  Ne7 {[%clk 0:00:11]} 45. Nf6 {[%clk 0:00:06]}  Nf5+ {[%clk 0:00:12]} 46. Ke4 {[%clk 0:00:05]}  Kf7 {[%clk 0:00:13]} 47. Kd3 {[%clk 0:00:04]}  Ke7 {[%clk 0:00:11]} 48. Nd1 {[%clk 0:00:04]}  Nb3 {[%clk 0:00:09]} 49. Nc3 {[%clk 0:00:04]}  Nbd4 {[%clk 0:00:09]} 50. Nce4 {[%clk 0:00:02]}  Nf3 {[%clk 0:00:09]} 51. h3 {[%clk 0:00:02]}  Ne5+ {[%clk 0:00:10]} 52. Kc3 {[%clk 0:00:02]}  Ne3 {[%clk 0:00:10]} 53. Nd2 {[%clk 0:00:01]}  Nf7 {[%clk 0:00:10]} 54. Nfe4 {[%clk 0:00:02]}  Ng2 {[%clk 0:00:09]} 55. Kd3 {[%clk 0:00:03]}  Nf4+ {[%clk 0:00:09]} 56. Ke3 {[%clk 0:00:04]}  Nxh3 {[%clk 0:00:10]} 57. Nf3 {[%clk 0:00:04]}  Nf4 {[%clk 0:00:09]} 58. Kxf4 {[%clk 0:00:04]}  Ne5 {[%clk 0:00:10]} 59. Nxe5 {[%clk 0:00:04]}  dxe5+ {[%clk 0:00:11]} 60. Kxe5 {[%clk 0:00:05]} 1-0


[Site "https://www.chess.com"]

[Event "Titled Tuesday Blitz November 29 Early 2022"]
[White "Petrova, Irina"]
[Black "Aloma Vidal, Robert"]
[WhiteFideId "14124122"]
[BlackFideId "2260409"]
[WhiteElo "2023"]
[BlackElo "2435"]
[Result "0-1"]
[Round "01"]
[TimeControl "180+1"]
[Date "2022.11.30"]
[WhiteClock "0:00:11"]
[BlackClock "0:00:09"]

1. e4 {[%clk 0:03:00]}  e5 {[%clk 0:02:59]} 2. Nf3 {[%clk 0:03:00]}  Nf6 {[%clk 0:03:00]} 3. Nxe5 {[%clk 0:03:00]}  d6 {[%clk 0:03:00]} 4. Nf3 {[%clk 0:02:59]}  Nxe4 {[%clk 0:03:01]} 5. Bd3 {[%clk 0:03:00]}  Nf6 {[%clk 0:02:53]} 6. O-O {[%clk 0:03:00]}  Be7 {[%clk 0:02:54]} 7. Re1 {[%clk 0:03:01]}  O-O {[%clk 0:02:54]} 8. Bf1 {[%clk 0:03:01]}  Bg4 {[%clk 0:02:47]} 9. d4 {[%clk 0:03:02]}  Nc6 {[%clk 0:02:47]} 10. Be3 {[%clk 0:02:58]}  Re8 {[%clk 0:02:44]} 11. h3 {[%clk 0:02:55]}  Bh5 {[%clk 0:02:44]} 12. c4 {[%clk 0:02:55]}  d5 {[%clk 0:02:38]} 13. Nc3 {[%clk 0:02:46]}  dxc4 {[%clk 0:02:30]} 14. g4 {[%clk 0:02:44]}  Bg6 {[%clk 0:02:24]} 15. Bxc4 {[%clk 0:02:44]}  Bb4 {[%clk 0:02:18]} 16. Rc1 {[%clk 0:02:08]}  a6 {[%clk 0:02:17]} 17. Qb3 {[%clk 0:02:03]}  Qd6 {[%clk 0:02:12]} 18. a3 {[%clk 0:01:52]}  Bxc3 {[%clk 0:02:11]} 19. Qxc3 {[%clk 0:01:53]}  h5 {[%clk 0:02:00]} 20. Nh4 {[%clk 0:01:30]}  Be4 {[%clk 0:01:53]} 21. g5 {[%clk 0:01:27]}  Nd5 {[%clk 0:01:52]} 22. Qd2 {[%clk 0:01:18]}  Nce7 {[%clk 0:01:35]} 23. Ng2 {[%clk 0:00:56]}  Nf5 {[%clk 0:01:24]} 24. Nf4 {[%clk 0:00:39]}  Nxf4 {[%clk 0:01:21]} 25. Bxf4 {[%clk 0:00:39]}  Qxd4 {[%clk 0:01:21]} 26. g6 {[%clk 0:00:34]}  Kh8 {[%clk 0:00:53]} 27. gxf7 {[%clk 0:00:33]}  Re7 {[%clk 0:00:42]} 28. Qxd4 {[%clk 0:00:24]}  Nxd4 {[%clk 0:00:42]} 29. Red1 {[%clk 0:00:25]}  Nf3+ {[%clk 0:00:38]} 30. Kf1 {[%clk 0:00:25]}  b5 {[%clk 0:00:31]} 31. Bb3 {[%clk 0:00:22]}  g5 {[%clk 0:00:20]} 32. Bxc7 {[%clk 0:00:20]}  Kg7 {[%clk 0:00:18]} 33. Bd6 {[%clk 0:00:20]}  Rxf7 {[%clk 0:00:18]} 34. Bxf7 {[%clk 0:00:20]}  Kxf7 {[%clk 0:00:19]} 35. Rc7+ {[%clk 0:00:20]}  Kg6 {[%clk 0:00:18]} 36. Bg3 {[%clk 0:00:18]}  h4 {[%clk 0:00:18]} 37. Rd6+ {[%clk 0:00:18]}  Kh5 {[%clk 0:00:15]} 38. Rcc6 {[%clk 0:00:15]}  Bxc6 {[%clk 0:00:14]} 39. Rxc6 {[%clk 0:00:15]}  hxg3 {[%clk 0:00:14]} 40. fxg3 {[%clk 0:00:16]}  g4 {[%clk 0:00:10]} 41. hxg4+ {[%clk 0:00:13]}  Kxg4 {[%clk 0:00:10]} 42. Kf2 {[%clk 0:00:14]}  Ne5 {[%clk 0:00:09]} 43. Re6 {[%clk 0:00:13]}  Nd3+ {[%clk 0:00:08]} 44. Ke3 {[%clk 0:00:13]}  Nxb2 {[%clk 0:00:08]} 45. Kd2 {[%clk 0:00:12]}  Nc4+ {[%clk 0:00:08]} 46. Kc3 {[%clk 0:00:12]}  Nxa3 {[%clk 0:00:08]} 47. Kb4 {[%clk 0:00:13]}  Nc4 {[%clk 0:00:09]} 48. Rg6+ {[%clk 0:00:11]}  Kf5 {[%clk 0:00:09]} 49. g4+ {[%clk 0:00:11]}  Kxg6 {[%clk 0:00:09]} 0-1


[Site "https://www.chess.com"]

[Event "Titled Tuesday Blitz November 29 Early 2022"]
[White "Plat, Vojtech"]
[Black "Gjestemoen-VonHirsch, Andre"]
[WhiteFideId "325740"]
[BlackFideId "1539531"]
[WhiteElo "2514"]
[BlackElo "2198"]
[Result "1-0"]
[Round "01"]
[TimeControl "180+1"]
[Date "2022.11.30"]
[WhiteClock "0:00:15"]
[BlackClock "0:00:03"]

1. e4 {[%clk 0:00:53]}  g6 {[%clk 0:02:53]} 2. d4 {[%clk 0:00:52]}  Bg7 {[%clk 0:02:54]} 3. Nf3 {[%clk 0:00:52]}  c5 {[%clk 0:02:54]} 4. dxc5 {[%clk 0:00:51]}  Qa5+ {[%clk 0:02:49]} 5. c3 {[%clk 0:00:52]}  Qxc5 {[%clk 0:02:48]} 6. Be3 {[%clk 0:00:52]}  Qc7 {[%clk 0:02:48]} 7. Bd4 {[%clk 0:00:52]}  Nf6 {[%clk 0:02:47]} 8. e5 {[%clk 0:00:53]}  Nd5 {[%clk 0:02:30]} 9. e6 {[%clk 0:00:52]}  Nf6 {[%clk 0:02:29]} 10. exf7+ {[%clk 0:00:52]}  Kxf7 {[%clk 0:02:30]} 11. Bc4+ {[%clk 0:00:51]}  e6 {[%clk 0:02:26]} 12. O-O {[%clk 0:00:50]}  Rf8 {[%clk 0:02:15]} 13. Bb3 {[%clk 0:00:47]}  Kg8 {[%clk 0:02:05]} 14. Be5 {[%clk 0:00:29]}  Qd8 {[%clk 0:01:59]} 15. Bd6 {[%clk 0:00:29]}  Re8 {[%clk 0:01:55]} 16. Nbd2 {[%clk 0:00:29]}  Nc6 {[%clk 0:01:50]} 17. Re1 {[%clk 0:00:29]}  b6 {[%clk 0:01:42]} 18. Nc4 {[%clk 0:00:28]}  Bb7 {[%clk 0:01:36]} 19. Nce5 {[%clk 0:00:28]}  Nxe5 {[%clk 0:01:34]} 20. Nxe5 {[%clk 0:00:28]}  Ne4 {[%clk 0:01:27]} 21. Bc2 {[%clk 0:00:24]}  Nxd6 {[%clk 0:01:15]} 22. Qxd6 {[%clk 0:00:23]}  Qg5 {[%clk 0:01:04]} 23. f3 {[%clk 0:00:24]}  Rad8 {[%clk 0:00:33]} 24. Rad1 {[%clk 0:00:23]}  Bf8 {[%clk 0:00:27]} 25. Qc7 {[%clk 0:00:22]}  Bc5+ {[%clk 0:00:19]} 26. Kh1 {[%clk 0:00:22]}  Bc8 {[%clk 0:00:12]} 27. b4 {[%clk 0:00:21]}  Bf2 {[%clk 0:00:11]} 28. Re2 {[%clk 0:00:21]}  Be3 {[%clk 0:00:08]} 29. Ng4 {[%clk 0:00:20]}  Bf4 {[%clk 0:00:08]} 30. Qxa7 {[%clk 0:00:20]}  d5 {[%clk 0:00:07]} 31. Qxb6 {[%clk 0:00:19]}  e5 {[%clk 0:00:08]} 32. Nf6+ {[%clk 0:00:19]}  Kg7 {[%clk 0:00:07]} 33. Nxe8+ {[%clk 0:00:19]}  Rxe8 {[%clk 0:00:08]} 34. Qc7+ {[%clk 0:00:18]}  Kh6 {[%clk 0:00:06]} 35. g3 {[%clk 0:00:17]}  Be3 {[%clk 0:00:03]} 36. Qf7 {[%clk 0:00:16]}  d4 {[%clk 0:00:03]} 37. Qxe8 {[%clk 0:00:16]}  Bb7 {[%clk 0:00:03]} 38. Qf8+ {[%clk 0:00:16]}  Kh5 {[%clk 0:00:03]} 39. Be4 {[%clk 0:00:16]}  Bxe4 {[%clk 0:00:02]} 40. fxe4 {[%clk 0:00:15]}  Qg4 {[%clk 0:00:03]} 41. Qf1 {[%clk 0:00:15]}  dxc3 {[%clk 0:00:03]} 42. Rxe3 {[%clk 0:00:15]} 1-0


[Site "https://www.chess.com"]

[Event "Titled Tuesday Blitz November 29 Early 2022"]
[White "Putnam, Liam"]
[Black "Tworuszka, Michal"]
[WhiteFideId "30938279"]
[BlackFideId "1117858"]
[WhiteElo "2082"]
[BlackElo "2417"]
[Result "1-0"]
[Round "01"]
[TimeControl "180+1"]
[Date "2022.11.30"]
[WhiteClock "0:01:46"]
[BlackClock "0:00:01"]

1. Nf3 {[%clk 0:02:56]}  d5 {[%clk 0:02:58]} 2. b3 {[%clk 0:02:56]}  c5 {[%clk 0:02:53]} 3. e3 {[%clk 0:02:48]}  Nc6 {[%clk 0:02:53]} 4. Bb2 {[%clk 0:02:47]}  Nf6 {[%clk 0:02:53]} 5. Bb5 {[%clk 0:02:48]}  e6 {[%clk 0:02:48]} 6. O-O {[%clk 0:02:48]}  Bd7 {[%clk 0:02:48]} 7. d3 {[%clk 0:02:46]}  Bd6 {[%clk 0:02:47]} 8. Nbd2 {[%clk 0:02:46]}  a6 {[%clk 0:02:47]} 9. Bxc6 {[%clk 0:02:46]}  Bxc6 {[%clk 0:02:47]} 10. Ne5 {[%clk 0:02:47]}  O-O {[%clk 0:02:25]} 11. f4 {[%clk 0:02:46]}  Nd7 {[%clk 0:02:13]} 12. Nxc6 {[%clk 0:02:41]}  bxc6 {[%clk 0:02:14]} 13. Qg4 {[%clk 0:02:37]}  e5 {[%clk 0:01:59]} 14. Rae1 {[%clk 0:02:27]}  Qe7 {[%clk 0:01:38]} 15. e4 {[%clk 0:02:23]}  d4 {[%clk 0:01:32]} 16. f5 {[%clk 0:02:15]}  f6 {[%clk 0:01:23]} 17. Nc4 {[%clk 0:02:13]}  Bc7 {[%clk 0:01:21]} 18. Qf3 {[%clk 0:02:11]}  Nb6 {[%clk 0:01:16]} 19. Nd2 {[%clk 0:02:10]}  Qf7 {[%clk 0:01:14]} 20. g4 {[%clk 0:02:10]}  h6 {[%clk 0:00:22]} 21. h4 {[%clk 0:02:10]}  a5 {[%clk 0:00:22]} 22. a4 {[%clk 0:02:09]}  Bd8 {[%clk 0:00:11]} 23. Kf2 {[%clk 0:02:04]}  Be7 {[%clk 0:00:11]} 24. Rg1 {[%clk 0:02:04]}  Rab8 {[%clk 0:00:10]} 25. Bc1 {[%clk 0:02:03]}  Rfc8 {[%clk 0:00:03]} 26. Rg2 {[%clk 0:02:03]}  Kf8 {[%clk 0:00:03]} 27. Reg1 {[%clk 0:02:03]}  Ke8 {[%clk 0:00:04]} 28. Nc4 {[%clk 0:02:04]}  Nxc4 {[%clk 0:00:02]} 29. dxc4 {[%clk 0:02:05]}  Kd7 {[%clk 0:00:03]} 30. g5 {[%clk 0:02:05]}  fxg5 {[%clk 0:00:03]} 31. hxg5 {[%clk 0:02:06]}  hxg5 {[%clk 0:00:04]} 32. Bxg5 {[%clk 0:02:07]}  Bxg5 {[%clk 0:00:04]} 33. Rxg5 {[%clk 0:02:08]}  Rg8 {[%clk 0:00:05]} 34. Rg6 {[%clk 0:02:08]}  Rbf8 {[%clk 0:00:03]} 35. Qg3 {[%clk 0:02:04]}  Qe7 {[%clk 0:00:02]} 36. Rxg7 {[%clk 0:02:01]}  Rxg7 {[%clk 0:00:03]} 37. Qxg7 {[%clk 0:02:02]}  Rf7 {[%clk 0:00:02]} 38. Qg8 {[%clk 0:02:01]}  Qh4+ {[%clk 0:00:02]} 39. Rg3 {[%clk 0:02:00]}  Qf4+ {[%clk 0:00:02]} 40. Kg1 {[%clk 0:01:56]}  Qc1+ {[%clk 0:00:02]} 41. Kh2 {[%clk 0:01:56]}  Qxc2+ {[%clk 0:00:02]} 42. Kh3 {[%clk 0:01:55]}  Re7 {[%clk 0:00:02]} 43. f6 {[%clk 0:01:54]}  Qxe4 {[%clk 0:00:02]} 44. fxe7 {[%clk 0:01:53]}  Qh1+ {[%clk 0:00:02]} 45. Kg4 {[%clk 0:01:54]}  Qe4+ {[%clk 0:00:03]} 46. Kh5 {[%clk 0:01:52]}  Qh1+ {[%clk 0:00:01]} 47. Kg6 {[%clk 0:01:48]}  Qe4+ {[%clk 0:00:01]} 48. Kg7 {[%clk 0:01:46]} 1-0


[Site "https://www.chess.com"]

[Event "Titled Tuesday Blitz November 29 Early 2022"]
[White "Skliarov, Viktor"]
[Black "Wieczorek, Zbigniew"]
[WhiteFideId "14106736"]
[BlackFideId "1102001"]
[WhiteElo "2284"]
[BlackElo "2311"]
[Result "1-0"]
[Round "01"]
[TimeControl "180+1"]
[Date "2022.11.30"]
[WhiteClock "0:01:44"]
[BlackClock "0:01:36"]

1. e4 {[%clk 0:02:57]}  g6 {[%clk 0:02:56]} 2. d4 {[%clk 0:02:56]}  Bg7 {[%clk 0:02:55]} 3. Nc3 {[%clk 0:02:56]}  c6 {[%clk 0:02:54]} 4. Bc4 {[%clk 0:02:54]}  d6 {[%clk 0:02:53]} 5. Qf3 {[%clk 0:02:53]}  e6 {[%clk 0:02:52]} 6. Nge2 {[%clk 0:02:50]}  Qe7 {[%clk 0:02:47]} 7. h4 {[%clk 0:02:46]}  h6 {[%clk 0:02:41]} 8. a4 {[%clk 0:02:41]}  e5 {[%clk 0:02:39]} 9. dxe5 {[%clk 0:02:32]}  dxe5 {[%clk 0:02:36]} 10. h5 {[%clk 0:02:32]}  g5 {[%clk 0:02:22]} 11. Ng3 {[%clk 0:02:32]}  Nf6 {[%clk 0:02:21]} 12. Nf5 {[%clk 0:02:28]}  Bxf5 {[%clk 0:02:19]} 13. Qxf5 {[%clk 0:02:29]}  Nbd7 {[%clk 0:02:17]} 14. Be3 {[%clk 0:02:25]}  Qb4 {[%clk 0:02:08]} 15. Bb3 {[%clk 0:02:11]}  a5 {[%clk 0:01:55]} 16. O-O-O {[%clk 0:01:59]}  Ke7 {[%clk 0:01:36]} 17. Rxd7+ {[%clk 0:01:44]} 1-0


[Site "https://www.chess.com"]

[Event "Titled Tuesday Blitz November 29 Early 2022"]
[White "Sokolovsky, Yahli"]
[Black "Buscar, Michael"]
[WhiteFideId "2820242"]
[BlackFideId "2603616"]
[WhiteElo "2316"]
[BlackElo "2010"]
[Result "1-0"]
[Round "01"]
[TimeControl "180+1"]
[Date "2022.11.30"]
[WhiteClock "0:00:25"]
[BlackClock "0:01:05"]

1. b3 {[%clk 0:03:00]}  Nf6 {[%clk 0:02:58]} 2. Bb2 {[%clk 0:03:01]}  e6 {[%clk 0:02:58]} 3. e3 {[%clk 0:02:59]}  b6 {[%clk 0:02:58]} 4. Nf3 {[%clk 0:02:59]}  Bb7 {[%clk 0:02:59]} 5. d4 {[%clk 0:02:59]}  Be7 {[%clk 0:02:59]} 6. Bd3 {[%clk 0:03:00]}  c5 {[%clk 0:02:59]} 7. O-O {[%clk 0:03:00]}  cxd4 {[%clk 0:02:59]} 8. exd4 {[%clk 0:03:00]}  O-O {[%clk 0:02:59]} 9. Nbd2 {[%clk 0:03:00]}  d6 {[%clk 0:02:59]} 10. c4 {[%clk 0:03:00]}  Nbd7 {[%clk 0:03:00]} 11. Qc2 {[%clk 0:02:57]}  Rc8 {[%clk 0:02:56]} 12. Rac1 {[%clk 0:02:58]}  Qc7 {[%clk 0:02:54]} 13. Rfe1 {[%clk 0:02:53]}  Rfe8 {[%clk 0:02:53]} 14. Qb1 {[%clk 0:02:54]}  Nf8 {[%clk 0:02:53]} 15. Ne4 {[%clk 0:02:28]}  Ng6 {[%clk 0:02:38]} 16. Nfg5 {[%clk 0:02:12]}  Qc6 {[%clk 0:02:07]} 17. d5 {[%clk 0:01:57]}  exd5 {[%clk 0:02:03]} 18. cxd5 {[%clk 0:01:57]}  Qxd5 {[%clk 0:02:03]} 19. Bc4 {[%clk 0:01:49]}  Rxc4 {[%clk 0:01:52]} 20. bxc4 {[%clk 0:01:50]}  Qc6 {[%clk 0:01:39]} 21. Nxf6+ {[%clk 0:01:02]}  Bxf6 {[%clk 0:01:40]} 22. Rxe8+ {[%clk 0:00:59]}  Qxe8 {[%clk 0:01:40]} 23. Bxf6 {[%clk 0:00:44]}  gxf6 {[%clk 0:01:41]} 24. Re1 {[%clk 0:00:42]}  Qa8 {[%clk 0:01:24]} 25. Ne4 {[%clk 0:00:36]}  f5 {[%clk 0:01:20]} 26. Nf6+ {[%clk 0:00:32]}  Kg7 {[%clk 0:01:20]} 27. Qxf5 {[%clk 0:00:29]}  Bxg2 {[%clk 0:01:19]} 28. Re8 {[%clk 0:00:25]}  Qf3 {[%clk 0:01:05]} 29. Rg8+ {[%clk 0:00:25]}  Kh6 {[%clk 0:01:05]} 30. Ng4+ {[%clk 0:00:25]} 1-0


[Site "https://www.chess.com"]

[Event "Titled Tuesday Blitz November 29 Early 2022"]
[White "Szabo, Marton Mihaly"]
[Black "Vasques, Antonio Pedro Freixial"]
[WhiteFideId "787086"]
[BlackFideId "1908332"]
[WhiteElo "2168"]
[BlackElo "2243"]
[Result "0-1"]
[Round "01"]
[TimeControl "180+1"]
[Date "2022.11.30"]
[WhiteClock "0:00:38"]
[BlackClock "0:00:33"]

1. e4 {[%clk 0:02:54]}  c5 {[%clk 0:02:55]} 2. c4 {[%clk 0:02:50]}  Nc6 {[%clk 0:02:53]} 3. Nc3 {[%clk 0:02:51]}  g6 {[%clk 0:02:49]} 4. g3 {[%clk 0:02:51]}  Bg7 {[%clk 0:02:50]} 5. Bg2 {[%clk 0:02:51]}  Nf6 {[%clk 0:02:49]} 6. Nge2 {[%clk 0:02:51]}  O-O {[%clk 0:02:49]} 7. O-O {[%clk 0:02:52]}  Ne8 {[%clk 0:02:49]} 8. d3 {[%clk 0:02:52]}  Nc7 {[%clk 0:02:49]} 9. Rb1 {[%clk 0:02:53]}  Ne6 {[%clk 0:02:49]} 10. a3 {[%clk 0:02:53]}  b6 {[%clk 0:02:46]} 11. b4 {[%clk 0:02:52]}  d6 {[%clk 0:02:45]} 12. Be3 {[%clk 0:02:52]}  Ned4 {[%clk 0:02:45]} 13. Qd2 {[%clk 0:02:52]}  Bh3 {[%clk 0:02:37]} 14. Bh6 {[%clk 0:02:26]}  Bxg2 {[%clk 0:02:04]} 15. Kxg2 {[%clk 0:02:25]}  Nxe2 {[%clk 0:01:55]} 16. Nxe2 {[%clk 0:02:24]}  e6 {[%clk 0:01:55]} 17. Bxg7 {[%clk 0:02:24]}  Kxg7 {[%clk 0:01:56]} 18. b5 {[%clk 0:02:21]}  Nd4 {[%clk 0:01:52]} 19. Nxd4 {[%clk 0:02:22]}  cxd4 {[%clk 0:01:53]} 20. f4 {[%clk 0:02:23]}  Qc7 {[%clk 0:01:53]} 21. f5 {[%clk 0:02:21]}  exf5 {[%clk 0:01:21]} 22. exf5 {[%clk 0:02:19]}  f6 {[%clk 0:01:04]} 23. Rf4 {[%clk 0:02:03]}  g5 {[%clk 0:00:59]} 24. Rxd4 {[%clk 0:01:59]}  Rae8 {[%clk 0:00:58]} 25. Rd5 {[%clk 0:01:30]}  Re5 {[%clk 0:00:54]} 26. Rxe5 {[%clk 0:01:29]}  dxe5 {[%clk 0:00:55]} 27. Qe3 {[%clk 0:01:22]}  Rd8 {[%clk 0:00:54]} 28. a4 {[%clk 0:01:19]}  Rd4 {[%clk 0:00:53]} 29. Qf3 {[%clk 0:01:05]}  Qd7 {[%clk 0:00:50]} 30. Rb3 {[%clk 0:00:57]}  g4 {[%clk 0:00:48]} 31. Qf1 {[%clk 0:00:55]}  e4 {[%clk 0:00:45]} 32. dxe4 {[%clk 0:00:55]}  Rd2+ {[%clk 0:00:45]} 33. Kh1 {[%clk 0:00:53]}  Rd1 {[%clk 0:00:46]} 34. Rb1 {[%clk 0:00:46]}  Rxf1+ {[%clk 0:00:45]} 35. Rxf1 {[%clk 0:00:47]}  Qd3 {[%clk 0:00:44]} 36. Rf4 {[%clk 0:00:48]}  Qxc4 {[%clk 0:00:41]} 37. Rxg4+ {[%clk 0:00:48]}  Kf7 {[%clk 0:00:39]} 38. h3 {[%clk 0:00:46]}  Qxa4 {[%clk 0:00:39]} 39. Kg2 {[%clk 0:00:46]}  Qxb5 {[%clk 0:00:36]} 40. Rh4 {[%clk 0:00:47]}  Qe2+ {[%clk 0:00:36]} 41. Kg1 {[%clk 0:00:46]}  h5 {[%clk 0:00:33]} 42. Rf4 {[%clk 0:00:38]}  a5 {[%clk 0:00:32]} 43. g4 {[%clk 0:00:38]}  hxg4 {[%clk 0:00:32]} 44. Rxg4 {[%clk 0:00:37]}  Qxg4+ {[%clk 0:00:29]} 45. hxg4 {[%clk 0:00:37]}  a4 {[%clk 0:00:30]} 46. g5 {[%clk 0:00:35]}  fxg5 {[%clk 0:00:30]} 47. Kf2 {[%clk 0:00:35]}  a3 {[%clk 0:00:30]} 48. e5 {[%clk 0:00:35]}  a2 {[%clk 0:00:31]} 49. e6+ {[%clk 0:00:36]}  Kf6 {[%clk 0:00:31]} 50. e7 {[%clk 0:00:37]}  Kxe7 {[%clk 0:00:32]} 51. Kf3 {[%clk 0:00:37]}  Kf6 {[%clk 0:00:33]} 52. Kg4 {[%clk 0:00:38]}  a1=Q {[%clk 0:00:33]} 0-1


[Site "https://www.chess.com"]

[Event "Titled Tuesday Blitz November 29 Early 2022"]
[White "Sztokbant, Bernardo Vainzoff"]
[Black "Firouzja, Alireza"]
[WhiteFideId "2115956"]
[BlackFideId "12573981"]
[WhiteElo "2228"]
[BlackElo "2903"]
[Result "0-1"]
[Round "01"]
[TimeControl "180+1"]
[Date "2022.11.30"]
[WhiteClock "0:00:06"]
[BlackClock "0:02:02"]

1. e4 {[%clk 0:02:59]}  g6 {[%clk 0:03:00]} 2. d4 {[%clk 0:02:59]}  Bg7 {[%clk 0:03:00]} 3. Nc3 {[%clk 0:02:59]}  d6 {[%clk 0:03:01]} 4. Nf3 {[%clk 0:03:00]}  Nf6 {[%clk 0:03:01]} 5. Be2 {[%clk 0:02:58]}  O-O {[%clk 0:03:01]} 6. O-O {[%clk 0:02:59]}  a6 {[%clk 0:03:02]} 7. Be3 {[%clk 0:02:59]}  e6 {[%clk 0:03:01]} 8. a4 {[%clk 0:02:59]}  b6 {[%clk 0:03:01]} 9. Bd3 {[%clk 0:02:58]}  Bb7 {[%clk 0:03:01]} 10. Re1 {[%clk 0:02:58]}  Nc6 {[%clk 0:03:01]} 11. h3 {[%clk 0:02:58]}  Nb4 {[%clk 0:03:02]} 12. Qd2 {[%clk 0:02:54]}  c5 {[%clk 0:02:59]} 13. Bh6 {[%clk 0:02:46]}  Rc8 {[%clk 0:02:50]} 14. Bxg7 {[%clk 0:02:47]}  Kxg7 {[%clk 0:02:51]} 15. Rad1 {[%clk 0:02:37]}  Qc7 {[%clk 0:02:48]} 16. Qf4 {[%clk 0:02:22]}  c4 {[%clk 0:02:25]} 17. Bf1 {[%clk 0:02:19]}  Nxc2 {[%clk 0:02:25]} 18. Re2 {[%clk 0:02:19]}  Nb4 {[%clk 0:02:25]} 19. Re3 {[%clk 0:02:07]}  Nh5 {[%clk 0:02:21]} 20. Qh4 {[%clk 0:01:58]}  Qd8 {[%clk 0:02:18]} 21. Qg4 {[%clk 0:01:49]}  f5 {[%clk 0:02:14]} 22. exf5 {[%clk 0:01:39]}  exf5 {[%clk 0:02:12]} 23. Qg5 {[%clk 0:01:37]}  Bxf3 {[%clk 0:02:11]} 24. Qxd8 {[%clk 0:01:37]}  Rfxd8 {[%clk 0:02:11]} 25. Rxf3 {[%clk 0:01:37]}  d5 {[%clk 0:02:08]} 26. g3 {[%clk 0:01:32]}  Nf6 {[%clk 0:02:08]} 27. Re3 {[%clk 0:01:31]}  Ne4 {[%clk 0:02:08]} 28. Bg2 {[%clk 0:01:22]}  Nd3 {[%clk 0:02:06]} 29. Rexd3 {[%clk 0:00:45]}  cxd3 {[%clk 0:02:06]} 30. Rxd3 {[%clk 0:00:42]}  Rc4 {[%clk 0:02:06]} 31. Ne2 {[%clk 0:00:33]}  Rxa4 {[%clk 0:02:04]} 32. Nf4 {[%clk 0:00:33]}  Kf6 {[%clk 0:02:04]} 33. Rd1 {[%clk 0:00:28]}  Rb4 {[%clk 0:02:03]} 34. Rc1 {[%clk 0:00:25]}  Rd6 {[%clk 0:02:02]} 35. Rc7 {[%clk 0:00:15]}  Rxd4 {[%clk 0:02:02]} 36. Rxh7 {[%clk 0:00:15]}  Rd1+ {[%clk 0:02:02]} 37. Kh2 {[%clk 0:00:13]}  d4 {[%clk 0:02:03]} 38. h4 {[%clk 0:00:11]}  Nxf2 {[%clk 0:02:03]} 39. Rh6 {[%clk 0:00:06]}  Ng4+ {[%clk 0:02:02]} 0-1


[Site "https://www.chess.com"]

[Event "Titled Tuesday Blitz November 29 Early 2022"]
[White "Tokhirjonova, Gulrukhbegim"]
[Black "Flis, Pawel"]
[WhiteFideId "14203626"]
[BlackFideId "1112864"]
[WhiteElo "2236"]
[BlackElo "1817"]
[Result "1-0"]
[Round "01"]
[TimeControl "180+1"]
[Date "2022.11.30"]
[WhiteClock "0:01:50"]
[BlackClock "0:01:53"]

1. e4 {[%clk 0:02:59]}  c5 {[%clk 0:02:58]} 2. Nf3 {[%clk 0:02:58]}  d6 {[%clk 0:02:58]} 3. d4 {[%clk 0:02:58]}  Nf6 {[%clk 0:02:58]} 4. Nc3 {[%clk 0:02:58]}  cxd4 {[%clk 0:02:59]} 5. Nxd4 {[%clk 0:02:59]}  a6 {[%clk 0:02:59]} 6. h3 {[%clk 0:02:57]}  e6 {[%clk 0:02:57]} 7. g4 {[%clk 0:02:56]}  Be7 {[%clk 0:02:56]} 8. g5 {[%clk 0:02:57]}  Nfd7 {[%clk 0:02:55]} 9. Be3 {[%clk 0:02:57]}  b6 {[%clk 0:02:52]} 10. f4 {[%clk 0:02:54]}  Bb7 {[%clk 0:02:51]} 11. Qf3 {[%clk 0:02:55]}  O-O {[%clk 0:02:46]} 12. h4 {[%clk 0:02:56]}  Nc5 {[%clk 0:02:40]} 13. h5 {[%clk 0:02:55]}  Nbd7 {[%clk 0:02:34]} 14. b4 {[%clk 0:02:52]}  e5 {[%clk 0:02:30]} 15. bxc5 {[%clk 0:02:14]}  exd4 {[%clk 0:02:28]} 16. Bxd4 {[%clk 0:02:14]}  bxc5 {[%clk 0:02:22]} 17. Be3 {[%clk 0:02:12]}  Nb6 {[%clk 0:02:16]} 18. Rb1 {[%clk 0:02:08]}  Rb8 {[%clk 0:02:06]} 19. Bd3 {[%clk 0:01:56]}  Qd7 {[%clk 0:02:00]} 20. Rxb6 {[%clk 0:01:50]}  Bxe4 {[%clk 0:01:53]} 21. Qxe4 {[%clk 0:01:50]}  Rxb6 {[%clk 0:01:53]} 22. Qxh7# {[%clk 0:01:50]} 1-0


[Site "https://www.chess.com"]